Cogmind - Beta 15 @@@ ROGUE MODE // 2025.07.22 @ 12:15:23 Player: Carpathian Result: Destroyed by D-53 Grenadier with Mini Grenade Launcher Performance ------------- Evolutions (0) 0 Regions Visited (2) 400 Robots Destroyed (16) 80 Value Destroyed (406) 406 Prototype IDs (0) 0 Alien Tech Used (0) 0 Bonus (0) 0 TOTAL SCORE: 886 Bonus ------- None Cogmind --------- Core Integrity 0/250 Matter 219/300 Energy 100/100 System Corruption 0% Temperature Warning (307) Movement Core (350) Ox6 Location -10/Mines Parts ------- > --- POWER (1) -------- (None) > --- PROPULSION (2) --- (None) > --- UTILITY (2) ------ Large Storage Unit Visual Processing Unit > --- WEAPON (2) ------- (None) > --- INVENTORY (15) --- Ion Engine Light Ion Engine Aluminum Leg Aluminum Leg Medium Storage Unit Transport Network Coupler Weapon Shielding Peak State ------------ > --- POWER ------------ Ion Engine > --- PROPULSION ------- Aluminum Leg Aluminum Leg > --- UTILITY ---------- Large Storage Unit Visual Processing Unit > --- WEAPON ----------- Medium Laser Particle Gun > --- INVENTORY -------- Ion Engine Light Ion Engine Aluminum Leg Aluminum Leg Aluminum Leg Medium Storage Unit Transport Network Coupler Weapon Shielding Small Laser Grenade Launcher [Rating: 10] Favorites ----------- Power Ion Engine Engine Ion Engine Propulsion Light Treads Treads Light Treads Leg Aluminum Leg Utility Visual Processing Unit Storage Small Storage Unit Processor Visual Processing Unit Weapon Medium Laser Energy Gun Medium Laser Ballistic Gun Light Assault Rifle Launcher Grenade Launcher Build | -11 -10 -10 ------- Run | Yrd Mat Min Slots Evolved . | . . . Power . | . . . Propulsion . | . . . Utility . | . . . Weapon . | . . . Parts Attached 17 | 6 10 1 Power 2 | 1 1 . Engine 2 | 1 1 . Core . | . . . Reactor . | . . . Propulsion 5 | 2 3 . Treads 2 | 2 . . Leg 3 | . 3 . Wheel . | . . . Hover . | . . . Flight . | . . . Utility 4 | 1 3 . Device . | . . . Storage 3 | 1 2 . Processor 1 | . 1 . Hackware . | . . . Protection . | . . . Artifact . | . . . Weapon 6 | 2 3 1 Energy Gun 4 | 1 3 . Energy Cannon . | . . . Ballistic Gun 1 | 1 . . Ballistic Cannon . | . . . Launcher 1 | . . 1 Special Weapon . | . . . Impact Weapon . | . . . Slashing Weapon . | . . . Piercing Weapon . | . . . Special Melee Weapon . | . . . Unidentified Prototypes . | . . . Parts Lost 6 | . . 6 Power 1 | . . 1 Propulsion 2 | . . 2 Utility . | . . . Weapon 3 | . . 3 Highest Loss Streak 6 | . . 6 To Critical Strikes . | . . . Average Backups 6 | 2 6 8 Power 1 | . 1 2 Propulsion 1 | . 2 2 Utility 1 | . . 3 Weapon 1 | . 1 1 Tool/Special . | . . . Unused Backups 7 | . 1 6 Power 2 | . . 2 Propulsion 2 | . . 2 Utility 2 | . . 2 Weapon 1 | . 1 . Tool/Special . | . . . Average Slot Usage (%) 94 | . 92 98 Engine 14 | . 14 14 Treads 14 | . 20 . Leg 13 | . 7 26 Storage 14 | . 14 14 Processor 8 | . 6 14 Energy Gun 25 | . 25 26 Ballistic Gun 1 | . 2 . Peak Build Rating 10 | 6 10 9 Average Rating 7 | 5 7 8 On Entrance 5 | . 6 9 Naked Turns . | . . . Heaviest Build 30 | 13 30 30 Greatest Support 40 | 40 40 20 Greatest Overweight (x) 6 | 1 1 6 Average Overweight (x) . | . . 1 Largest Inventory Capacity 15 | 8 15 15 Average Capacity 10 | 7 9 15 Most Carried 10 | 4 10 8 Average Carried 6 | 2 6 7 Final Capacity 15 | 8 15 15 Final Carried 8 | 4 8 7 Class Distribution -------------------- 91% | Mutant 8% | Scavenger-Mutant Dominant Class ---------------- Mutant | -10/Materials Mutant | -10/Mines Resources | -11 -10 -10 ----------- Run | Yrd Mat Min Matter Collected 319 | 216 103 . Remotely . | . . . Salvage Created 715 | . 671 44 Parts 32 | . 32 . Haulers Intercepted 1 | . 1 . Recyclers Shooed 1 | . 1 . Parts Field Recycled . | . . . Retrieved Matter . | . . . Parts Self-Destructed . | . . . Prevented . | . . . Kills | -11 -10 -10 ------- Run | Yrd Mat Min Combat Hostiles Destroyed 17 | . 10 7 Guns 10 | . 9 1 AOE 6 | . . 6 Classes Destroyed 6 | . 5 1 Builder 2 | . 2 . Hauler 1 | . 1 . Recycler 2 | . 2 . Watcher 1 | . 1 . Grunt 10 | . 10 . Assembled 7 | . . 7 Best Kill Streak 7 | . 7 7 Combat Bots Only 7 | . 3 7 Max Kills in Single Turn 4 | . 1 4 Gunslinging . | . . . Exploded 4 | . . 4 Melee . | . . . Uniques/NPCs Destroyed . | . . . Combat | -11 -10 -10 -------- Run | Yrd Mat Min Hostile Shots Fired 88 | . 59 29 Missed 21 | . 14 7 Hits 67 | . 45 22 Melee 7 | . . 7 Projectile 60 | . 45 15 AOE 6 | . . 6 Critical Strikes 1 | . . 1 Damage Taken 1106 | . 549 557 Core 274 | . 132 142 Absorbed by Shields . | . . . Core Remaining (%) 100 | 100 . . Volleys Fired 56 | . 45 11 Largest 2 | . 2 2 Hottest 115 | . 100 115 Shots Fired 108 | . 89 19 Gun 104 | . 89 15 Cannon . | . . . Launcher 4 | . . 4 Special . | . . . Kinetic . | . . . Thermal 104 | . 89 15 Explosive 4 | . . 4 Electromagnetic . | . . . Robot Hit Streak 11 | . 11 3 Robot Miss Streak 3 | . 2 3 Penetration Max . | . . . Secondary Targets 2 | . 2 . Max Gunslinging Chain 1 | . 1 . Shots Hit Robots 78 | . 70 8 Core Hits 49 | . 30 19 Critical Kills . | . . . Critical Parts Destroyed . | . . . Critical Strikes 9 | . 7 2 Burn 9 | . 7 2 Melee Attacks . | . . . Impact . | . . . Slashing . | . . . Piercing . | . . . Sneak Attacks . | . . . Combat Hostiles . | . . . Follow-up Attacks . | . . . Damage Inflicted 1424 | . 897 527 Guns 1003 | . 897 106 Cannons . | . . . Explosions 421 | . . 421 Melee . | . . . Ramming . | . . . Kinetic . | . . . Thermal 1003 | . 897 106 Explosive 421 | . . 421 Electromagnetic . | . . . Impact . | . . . Slashing . | . . . Piercing . | . . . Highest Corruption . | . . . Average Corruption . | . . . Corruption Purged . | . . . Corruption Blocked . | . . . Overload Shots . | . . . Overflow Damage 9 | . . 9 Projectiles . | . . . Explosions 9 | . . 9 Melee . | . . . Knockbacks . | . . . Impact . | . . . Kinetic . | . . . Secondary . | . . . Self-Inflicted Damage 31 | . . 31 Shots 1 | . . 1 Rammed . | . . . Targets Rammed . | . . . Kicked . | . . . Crushed . | . . . Highest Temperature 493 | . 493 332 Average Temperature 162 | . 164 151 Received Heat Transfer 312 | . 312 . Effects 8 | . 6 2 Shutdowns 3 | . 3 . Energy Bleed 2 | . 1 1 Interference 1 | . 1 . Short Circuit 1 | . 1 . Damage (minor) 1 | . . 1 Siege Activations . | . . . Martial Activations . | . . . Shielding Activations . | . . . Robots Disrupted . | . . . Combat Hostiles . | . . . Robots Corrupted . | . . . Combat Hostiles . | . . . Parts Fried . | . . . Impact Corruptions . | . . . Robots Melted 2 | . 2 . Combat Hostiles 1 | . 1 . Parts Melted 7 | . 7 . Heat Transferred 3566 | . 3159 407 Parts Sabotaged . | . . . Parts Stolen . | . . . Parts Stripped . | . . . Power Chain Reactions . | . . . Alert | -11 -10 -10 ------- Run | Yrd Mat Min Maximum Alert Level . | . . . Low Security (%) 100 | 100 100 100 Level 1 . | . . . Level 2 . | . . . Level 3 . | . . . Level 4 . | . . . Level 5 . | . . . High Security . | . . . Max Security . | . . . Peak Influence 107 | . 107 34 Initial 34 | . . 34 Average 29 | . 43 7 Influence Increases 273 | . 264 9 Destroy 0b10 Robot/C 200 | . 200 . Destroy 0b10 Robot/NC 30 | . 30 . Destroy Leader 34 | . 34 . Destroy Structure 9 | . . 9 Influence Decreases 273 | . 176 97 Entered New Map 54 | . . 54 Time Decay 216 | . 176 40 Lost Part 3 | . . 3 Squads Dispatched 1 | . 1 . Investigation . | . . . Extermination . | . . . Reinforcement 1 | . 1 . Assault . | . . . Garrison . | . . . Intercept . | . . . Searches Triggered . | . . . Construction Impeded . | . . . Haulers Reinforced . | . . . Active Scanning Responses . | . . . Cargo Convoy Interrupts . | . . . Stealth | -11 -10 -10 --------- Run | Yrd Mat Min Distress Signals 3 | . 3 . Communications Jammed . | . . . Distress Signals . | . . . Times Spotted 38 | . 17 21 Peak Tracking Total 18 | . 5 18 Tactical Retreats 1 | . . 1 Traps | -11 -10 -10 ------- Run | Yrd Mat Min Traps Triggered . | . . . Indirectly . | . . . Trap Hack Attempts . | . . . Triggered . | . . . Disarmed . | . . . Reprogrammed . | . . . Reused . | . . . Traps Extracted . | . . . Installed . | . . . Triggered . | . . . Machines | -11 -10 -10 ---------- Run | Yrd Mat Min Machines Disabled . | . . . Max in Single Turn . | . . . Machines Repaired . | . . . Machines Dismantled . | . . . Machines Sabotaged . | . . . Overloaded Fab Kills . | . . . Hacking | -11 -10 -10 --------- Run | Yrd Mat Min Machines Accessed . | . . . Terminals . | . . . Fabricators . | . . . Repair Stations . | . . . Recycling Units . | . . . Scanalyzers . | . . . Garrison Access . | . . . Total Hacks . | . . . Successful . | . . . Failed . | . . . Catastrophic . | . . . Database Lockouts . | . . . Manual . | . . . Terminals . | . . . Fabricators . | . . . Repair Stations . | . . . Recycling Units . | . . . Scanalyzers . | . . . Garrison Access . | . . . Terminal Hacks . | . . . Fabricator Hacks . | . . . Repair Station Hacks . | . . . Recycling Unit Hacks . | . . . Scanalyzer . | . . . Garrison Access Hacks . | . . . Unauthorized Hacks . | . . . Terminals . | . . . Fabricators . | . . . Repair Stations . | . . . Recycling Units . | . . . Scanalyzers . | . . . Garrison Access . | . . . Data Cores Recovered . | . . . Used . | . . . Hacking Detections . | . . . Full Trace Events . | . . . Feedback Events . | . . . Feedback Blocked . | . . . Robot Schematics Acquired . | . . . Robots Built . | . . . Authchips . | . . . Time . | . . . Total Robot Build Rating . | . . . Part Schematics Acquired . | . . . Parts Built . | . . . Authchips . | . . . Time . | . . . Total Part Build Rating . | . . . Parts Repaired . | . . . Time . | . . . Parts Recycled . | . . . Recycled Matter . | . . . Retrieved Matter . | . . . Retrieved Components . | . . . Parts Scanalyzed . | . . . Part Schematics Acquired . | . . . Parts Damaged . | . . . Bothacking | -11 -10 -10 ------------ Run | Yrd Mat Min Used RIF Installer . | . . . Robots Hacked . | . . . Non-combat . | . . . Combat . | . . . Robot Hacks Applied . | . . . Relay Couplers Released . | . . . Fabnet Peak Effective % . | . . . Robots Rewired . | . . . Allies Hacked . | . . . Hacks Repelled . | . . . Allies | -11 -10 -10 -------- Run | Yrd Mat Min Total Allies . | . . . Largest Group . | . . . Highest-Rated Group . | . . . Highest-Rated Ally . | . . . Total Orders . | . . . Ally Attacks . | . . . Total Damage . | . . . Kills . | . . . Allies Corrupted . | . . . Allies Melted . | . . . Intel | -11 -10 -10 ------- Run | Yrd Mat Min Active Infowar (turns) 473 | . 268 205 Optics 473 | . 268 205 Robot Analysis Total . | . . . Derelict Logs Recovered . | . . . Drone Launches . | . . . Drone Recoveries . | . . . Exploration | -11 -10 -10 ------------- Run | Yrd Mat Min Turns Passed 853 | 115 533 205 Spaces Moved 341 | 67 219 55 Core 10 | 9 . 1 Treads 213 | 58 155 . Legs 118 | . 64 54 Wheels . | . . . Hover . | . . . Flight . | . . . Fastest Speed 50 | 50 120 190 Average Speed 160 | 149 155 192 Slowest Speed 350 | 160 190 350 Overloaded Moves . | . . . Propulsion Burnouts . | . . . Robots Hopped . | . . . Potential Cave-ins . | . . . Cave-ins Triggered . | . . . Exploration Rate (%) 17 | 4 32 16 Regions Visited 2 Branch Regions 1 Pre-discovered Areas . | . . . Known Exits Taken . | . . . Unknown Exits Taken 2 | 1 1 . Scrap Searched . | . . . Spaces Dug . | . . . Terrain Destroyed 10 | . . 10 Melee . | . . . Projectile . | . . . AOE 10 | . . 10 Terrain Rammed . | . . . Walls Destroyed . | . . . Machines Disabled . | . . . Actions | -11 -10 -10 --------- Run | Yrd Mat Min Total 540 | 82 323 135 Wait 93 | . 27 66 Move 339 | 66 218 55 Hop . | . . . Pick Up 24 | 10 14 . Fast Attach . | . . . Attach 8 | 6 1 1 Detach . | . . . Swap 11 | . 9 2 Drop 9 | . 9 . Fire 56 | . 45 11 Melee . | . . . Ram . | . . . Kick . | . . . Crush . | . . . Escape Stasis . | . . . Rewire . | . . . Trap . | . . . Miscellaneous . | . . . Route ------- -11/Scrapyard -10/Materials -10/Mines History --------- Turn | Location | Event 11 | -11/Scrapyard | Discovered new exit (range 15) 116 | -11/Scrapyard | Entered Materials 305 | -10/Materials | Build established: Mutant 565 | -10/Materials | Discovered new exit (range 14) 587 | -10/Materials | Core integrity fell below 50% 649 | -10/Materials | Entered Mines 815 | -10/Mines | Assembled infested the area 820 | -10/Mines | Assisted by a Guerilla fighting off Assembled 851 | -10/Mines | Core integrity fell below 20% 854 | -10/Mines | Destroyed by D-53 Grenadier with Mini Grenade Launcher Last Messages --------------- 00831_ as-08401 destroyed. 00831_ as-92195 destroyed. 00831_ as-36648 destroyed. 00835_ as-73485 destroyed. 00835_ as-06856 destroyed. 00835_ Aluminum Leg destroyed. 00836_ as-59875 destroyed. 00840_ as-50855 suffers critical hit (Burn). 00841_ Knocked back. 00846_ Overheating: Energy bleed (-47). 00846_ Knocked back. 00846_ as-50855 destroyed. 00847_ Med. Laser destroyed. 00847_ as-25445 destroyed. 00850_ Particle Gun destroyed. 00850_ Destroyed Particle Gun. 00852_ Aluminum Leg destroyed. 00852_ Ion Engine destroyed. 00852_ Grenade Launcher destroyed. 00854_ Overheating: Visual Processing Unit damaged (-11). Map ----- +----------------------------------------------------+ | ????### ##??????????????????????? | | ???## #??????????????????????? | | ???# #??????????????????????? | | ???# ##??????????????????????? | | ???## ###???????????????????????? | | ????#### ##?????????????????????????? | | ???????# #??????????????????????????? | | ????#### #??????????????????????????? | | ???## #??????????????????????????? | | ???# #??????????????????????????? | | ???# ######?????????????????????? | | ???# #?????????????????????? | | ???## #### #?????????????????????? | | ????## #??# #?????????????????????? | | ?????## #??# #?????????????????????? | | ??????# #??# #?????????????????????? | | ??????# #??# ###???????????????????? | | ??????# #?## ##????????##????????? | | ??????# #?# #?????? ???????? | | ??????# ### #????? ??????? | | ??????# #???? ?????? | | ??????# ### ###? ?????? | | ??????# ## # #????? | | ??????# # ????? | | ??????# d ???? | | ??????# @ d ; ???? | | ??# # ???? | | ?# #???? ## # ????? | | ?# ##?????#???????????? | | ?# #??????????????????? | | ?# ### # ##??????????????????? | | ?## #??## ###???????????????????? | | ??## #????####?????????????????????? | | ???###??????????????????????????????? | | ????????????????????????????????????? | | ????????????????????????????????????? | | ????????????????????????????????????? | | | | | | | | | | | | | | | | | | | | | | | | | | | +----------------------------------------------------+ Best States ------------- Heat Dissipation 25 Energy Generation 10 Energy Capacity 250 Matter Stores 300 Matter Capacity 300 Sight Range 18 Terrain Scan Density 10 Evasion (%) 55 Recoil Reduction 2 Item Schematics ----------------- None Robot Schematics ------------------ None Fabricated ------------ Nothing Repaired ---------- Nothing Alien Tech Used ----------------- None Achievements -------------- None Challenges ------------ None Game ------ Seed TiamatWeaponPrototype Manual? 0 Play Time 00:07:50 Cumulative 39.2 hours Start 2025.07.22 @ 12:09:22 End 2025.07.22 @ 12:15:23 Sessions 1 Manual Loads 0 Difficulty Rogue Special Mode None Game No. 202 Rogue 202 Adventurer 0 Explorer 0 Win Type - Total 0 Types 0/0/0/0/0/0/0/0/0/0 Lore% 12 Gallery% 26 Achievement% 21 Wizard Run 0 Options --------- Layout 0 ASCII 0 Keyboard 0 Movement Mouse Keybinds 0 Fullscreen 2 Font 24/Cog Map View 76x50 Zoom Use 0% Tactical HUD 1 Map Filters NONE Filters NONE Steam 1 RUN: 44c9c17b-d2a7-48e9-964b-9ea34408f1d6